[Event "Karel Janecek Open 2024"]
[Site "Prague"]
[Date "2024.03.05"]
[Round "7.6"]
[White "Harshavardhan G B"]
[Black "Sethuraman, S.P."]
[Result "0-1"]
[ECO "C11"]
[WhiteElo "2392"]
[BlackElo "2594"]
[Annotator "TA"]
[PlyCount "140"]
[EventDate "2024.02.22"]
[EventType "swiss"]
[EventCountry "CZE"]
[SourceTitle "playchess.com"]
[Source "ChessBase"]
[SourceQuality "1"]
[TimeControl "40/5400+30:1800+30"]

{[%evp 14,140,0,-11,-6,-15,0,-10,0,0,0,-4,-12,0,0,-45,-40,-55,-65,-69,-85,-69,-81,-65,-14,-13,-15,-12,-14,-12,0,0,0,0,0,0,0,-12,-12,-14,0,-61,-57,-64,-68,-92,-91,-106,-79,-99,-68,-124,-119,-137,-127,-123,-111,-115,-97,-97,-82,-79,-38,-55,-35,-35,-35,-35,-35,-55,-62,-60,-70,-70,-81,-82,-69,-250,-264,-327,-311,-321,-320,-313,-325,-329,-329,-322,-320,-451,-434,-458,-462,-509,-500,-724,-686,-935,-906,-1413,-1412,-29976,-29977,-29978,-29979,-29976,-29977,-29982,-29975,-29975,-29975,-29975,-29976,-29976,-29978,-29978,-29979,-29980,-29981,-29982,-29983,-29983,-29984,-29985,-29986,-29986,-29987,-29987,-29988]} 1. e4 {[%emt 0:00:16]} e6 {[%emt 0:00:11]} 2. d4 {[%emt 0:00:30]} d5 {[%emt 0:00:07]} 3. Nc3 {[%emt 0:00:24]} Nf6 {[%emt 0:00:11]} 4. e5 {[%emt 0:00:05]} Nfd7 {[%emt 0:00:05]} 5. Nce2 {[%emt 0:00:05]} c5 {[%emt 0:00:05]} 6. c3 {[%emt 0:00:04]} Nc6 {[%emt 0:00:05]} 7. Nf3 {[%emt 0:00:05]} Be7 {[%emt 0:00:17]} 8. g3 {[%emt 0:00:31]} O-O {[%emt 0:06:31]} 9. h4 {[%emt 0:03:42]} Qa5 {[%emt 0:25:03]} 10. a3 {[%emt 0:02:38]} cxd4 {[%emt 0:16:43] The position is equal.} 11. b4 {[%emt 0:00:16]} Qb6 {[%emt 0:00:04]} 12. cxd4 {[%emt 0:00:33]} f6 $1 {[%emt 0:00:09]} 13. exf6 {[%emt 0:25:07]} Nxf6 {[%emt 0:00:06][%cal Oe6e5]} 14. Nf4 {[%emt 0:01:27]} a5 {[%emt 0:09:23]} 15. bxa5 {[%emt 0:14:48]} ({Of course not} 15. b5 Nxd4 16. Qxd4 Bc5 $19) 15... Qxa5+ {[%emt 0:00:41]} 16. Bd2 {[%emt 0:00:06]} Qa4 {[%emt 0:00:06]} 17. Qxa4 {[%emt 0:03:00]} Rxa4 {[%emt 0:00:07]} 18. Bb5 {[%emt 0:00:19]} Rxa3 {[%emt 0:22:33]} ({Black should try} 18... Nxd4 $15 19. Nxd4 (19. Bxa4 Nxf3+ 20. Ke2 Nxd2 $17) 19... Rxd4) 19. Rxa3 $11 {[%emt 0:00:23]} Bxa3 {[%emt 0:00:05]} 20. O-O {[%emt 0:00:12]} Ne4 {[%emt 0:00:59]} 21. Be3 {[%emt 0:00:55]} Nb4 {[%emt 0:04:59]} 22. Bc1 {[%emt 0:02:42]} Bxc1 {[%emt 0:00:40]} ({Reject} 22... Nc2 23. Ba4 Bxc1 24. Rxc1 $14) 23. Rxc1 {[%emt 0:00:07]} Nd6 {[%emt 0:00:03]} 24. Bf1 {[%emt 0:00:31]} Nc6 {[%emt 0:00:39]} 25. Bh3 {[%emt 0:03:52]} Re8 {[%emt 0:02:22]} 26. Kg2 {[%emt 0:01:10]} h6 {[%emt 0:03:21]} 27. Re1 {[%emt 0:07:16]} (27. Rc5 $11) 27... Kf7 $15 {[%emt 0:00:18]} 28. Bg4 {[%emt 0:02:16]} g6 {[%emt 0:00:53] Repels Bh5} 29. h5 {[%emt 0:00:17]} g5 {[%emt 0:00:08]} 30. Nd3 {[%emt 0:00:06]} Nc4 {[%emt 0:01:18]} 31. Rb1 {[%emt 0:03:07]} Re7 {[%emt 0:01:08]} 32. Nb4 {[%emt 0:01:42]} (32. Nfe5+ $15 N6xe5 33. dxe5) 32... Nxb4 $17 {[%emt 0:01:16]} 33. Rxb4 {[%emt 0:00:08]} Rc7 {[%emt 0:00:27]} 34. Ne1 {[%emt 0:01:01]} Bd7 {[%emt 0:00:51]} 35. Nd3 {[%emt 0:00:10]} b6 {[%emt 0:00:55]} 36. Rb1 {[%emt 0:02:10]} Ra7 {[%emt 0:00:40]} 37. Ne5+ {[%emt 0:03:27]} Nxe5 {[%emt 0:00:41]} 38. dxe5 {[%emt 0:00:04][%mdl 4096] Endgame. KRB-KRB} b5 {[%emt 0:00:09]} 39. Be2 {[%emt 0:00:06]} Rb7 {[%emt 0:00:22]} 40. Rb4 {[%emt 0:00:06]} Ke7 {[%emt 0:00:45]} 41. f4 {[%emt 0:32:05]} gxf4 {[%emt 0:31:07]} 42. gxf4 {[%emt 0:02:36]} Kd8 {[%emt 0:00:00]} 43. Kf3 {[%emt 0:00:00]} Kc7 {[%emt 0:00:00]} 44. Ke3 {[%emt 0:00:00]} Kb6 {[%emt 0:00:00]} 45. Kd4 $2 {[%emt 0:00:00] [#] White does not recover from this.} (45. f5 $15) 45... Ra7 $1 $19 {[%emt 0:00:00]} 46. Rb2 {[%emt 0:00:00]} Ra4+ {[%emt 0:00:00]} 47. Ke3 {[%emt 0:00:00]} Re4+ {[%emt 0:00:00]} 48. Kf3 {[%emt 0:00:00]} Be8 {[%emt 0:00:00]} 49. Kg3 {[%emt 0:00:00]} b4 {[%emt 0:00:00]} 50. Bf3 {[%emt 0:00:00]} Rd4 {[%emt 0:00:00]} 51. Bg4 {[%emt 0:00:00]} (51. f5 $142 exf5 52. Be2) 51... Bd7 {[%emt 0:00:00]} 52. Be2 {[%emt 0:00:00]} Kc5 {[%emt 0:00:00]} 53. Kf3 {[%emt 0:00:00]} Ba4 {[%emt 0:00:00]} 54. Ke3 {[%emt 0:00:00]} Re4+ {[%emt 0:00:00]} 55. Kf3 {[%emt 0:00:00]} b3 {[%emt 0:00:00] Strongly threatening ...Kb4.} 56. Bd3 {[%emt 0:00:00] [#]} Kd4 $1 {[%emt 0:00:12]} 57. Bxe4 {[%emt 0:00:00]} (57. Bb1 Re1) 57... dxe4+ {[%emt 0:00:08] KR-KB. Black mates.} 58. Kf2 {[%emt 0:00:00]} Kc3 {[%emt 0:00:27]} 59. Rb1 {[%emt 0:00:00]} b2 {[%emt 0:00:10]} 60. Ke3 {[%emt 0:00:00]} Kc2 {[%emt 0:00:53]} 61. Rh1 {[%emt 0:00:00]} b1=Q {[%emt 0:00:24]} 62. Rxb1 {[%emt 0:00:00]} Kxb1 {[%emt 0:00:03]} 63. Kxe4 {[%emt 0:00:00] KB-K3P} Bc2+ {[%emt 0:00:33]} 64. Kd4 {[%emt 0:00:00]} Kc1 {[%emt 0:00:06]} 65. Kc5 {[%emt 0:00:00]} Kd2 {[%emt 0:00:06]} 66. Kd6 {[%emt 0:00:00]} Bf5 {[%emt 0:00:04]} 67. Ke7 {[%emt 0:00:00]} Ke3 {[%emt 0:00:03]} 68. Kf6 {[%emt 0:00:00]} Kxf4 {[%emt 0:00:05]} 69. Kg7 {[%emt 0:00:00]} Kg5 {[%emt 0:00:05]} 70. Kf7 {[%emt 0:00:00]} Kxh5 {[%emt 0:00:06] Weighted Error Value: White=0.55/Black=0.05 (flawless) .  Loses game:     	White=1     	---        Mistake:       	White=3     	Black=1      Inaccurate:     	White=3     	Black=2      OK:         	White=16    	Black=18     Best:        	White=2     	Black=5      Strong:       	---       	Black=2} 0-1

[Event "Karel Janecek Open 2024"]
[Site "Prague"]
[Date "2024.03.05"]
[Round "7.7"]
[White "Svanda, Ondrej"]
[Black "Safarli, Eltaj"]
[Result "0-1"]
[ECO "B70"]
[WhiteElo "2369"]
[BlackElo "2604"]
[Annotator "ChessBase"]
[PlyCount "36"]
[EventDate "2024.02.22"]
[EventType "swiss"]
[EventCountry "CZE"]
[SourceTitle "playchess.com"]
[Source "ChessBase"]
[SourceQuality "1"]
[TimeControl "40/5400+30:1800+30"]

1. e4 {[%emt 0:00:03]} c5 {[%emt 0:00:36]} 2. Nf3 {[%emt 0:00:04]} d6 {[%emt 0:00:17]} 3. d4 {[%emt 0:02:37]} cxd4 {[%emt 0:00:05]} 4. Nxd4 {[%emt 0:00:03]} Nf6 {[%emt 0:00:25]} 5. Nc3 {[%emt 0:00:06]} g6 {[%emt 0:00:18]} 6. Be2 {[%emt 0:11:56]} Bg7 {[%emt 0:00:23]} 7. O-O {[%emt 0:00:04]} O-O {[%emt 0:00:05]} 8. Re1 {[%emt 0:01:52]} Nc6 {[%emt 0:00:06]} 9. Nb3 {[%emt 0:00:02]} a5 {[%emt 0:01:00]} 10. a4 {[%emt 0:01:09]} Be6 {[%emt 0:00:42]} 11. Bf1 {[%emt 0:03:52]} d5 {[%emt 0:04:19]} 12. exd5 {[%emt 0:17:54]} Nxd5 {[%emt 0:00:44]} 13. Bd2 {[%emt 0:02:00]} Ndb4 {[%emt 0:02:56]} 14. Nc5 {[%emt 0:06:34]} Bf5 {[%emt 0:02:32]} 15. N5e4 {[%emt 0:01:20]} Nd4 {[%emt 0:02:45]} 16. Rc1 {[%emt 0:00:52]} Rc8 {[%emt 0:00:26]} 17. g3 {[%emt 0:06:48]} Qd7 {[%emt 0:02:18]} 18. Bg2 {[%emt 0:00:20]} Rfd8 {[%emt 0:01:09]} 0-1

[Event "Karel Janecek Open 2024"]
[Site "Prague"]
[Date "2024.03.05"]
[Round "7.8"]
[White "Mikes, Jan"]
[Black "Heberla, Bartlomiej"]
[Result "1-0"]
[ECO "C50"]
[WhiteElo "2358"]
[BlackElo "2546"]
[Annotator "TA"]
[PlyCount "119"]
[EventDate "2024.02.22"]
[EventType "swiss"]
[EventCountry "CZE"]
[SourceTitle "playchess.com"]
[Source "ChessBase"]
[SourceQuality "1"]
[TimeControl "40/5400+30:1800+30"]

{[%evp 46,119,32,-20,-18,-15,-16,-15,0,-180,-182,-185,-64,-57,-64,-66,-68,-60,-50,-52,-34,-29,4,0,0,0,0,0,0,0,0,-18,-8,-44,-28,-37,0,0,0,0,0,1,0,0,0,0,0,0,0,0,0,0,0,0,16,16,16,8,227,224,275,164,671,655,497,290,6593,5608,29977,29978,29978,29977,29979,29981,29975,29970]} 1. e4 {[%emt 0:00:03]} e5 {[%emt 0:07:53]} 2. Nf3 {[%emt 0:00:14]} Nc6 {[%emt 0:00:08]} 3. Bc4 {[%emt 0:01:08]} d6 {[%emt 0:00:02]} 4. d3 {[%emt 0:04:20]} Na5 {[%emt 0:00:34]} 5. Nc3 {[%emt 0:03:24]} Be7 {[%emt 0:01:15]} 6. h3 {[%emt 0:05:11] C50: Hungarian Defence and Giuoco Pianissimo.} Nxc4 {[%emt 0:03:21]} 7. dxc4 {[%emt 0:00:04]} f5 $146 {[%emt 0:00:04]} ({Predecessor:} 7... Nf6 8. Bg5 Be6 9. Qe2 O-O 10. O-O-O b6 11. Nxe5 Nxe4 12. Nxe4 Bxg5+ 13. Kb1 Bh6 {1-0 Jobava,B (2603)-Paravyan,D (2647) Titled Tuesday intern op 11th May blitz 2021 (8)}) 8. exf5 {[%emt 0:04:17]} Bxf5 {[%emt 0:01:01]} 9. g4 {[%emt 0:00:14]} Be6 {[%emt 0:04:53]} 10. Qe2 {[%emt 0:01:04]} Qd7 {[%emt 0:02:33]} 11. Be3 {[%emt 0:05:02]} Qc6 {[%emt 0:00:52]} 12. b3 {[%emt 0:02:46]} Nf6 {[%emt 0:16:31]} 13. O-O-O {[%emt 0:03:03]} O-O {[%emt 0:14:37]} 14. Ng5 {[%emt 0:01:20]} Bd7 {[%emt 0:08:25]} 15. f3 {[%emt 0:02:07]} b5 {[%emt 0:13:40]} 16. Nxb5 {[%emt 0:09:08]} d5 {[%emt 0:01:26]} 17. a4 {[%emt 0:01:03]} d4 {[%emt 0:11:57]} 18. Bxd4 {[%emt 0:06:19]} h6 {[%emt 0:00:42]} 19. Bxe5 {[%emt 0:10:06]} hxg5 {[%emt 0:00:36]} 20. h4 {[%emt 0:03:23]} gxh4 {[%emt 0:03:25]} 21. Rxh4 {[%emt 0:17:46]} Rae8 {[%emt 0:00:01]} 22. g5 {[%emt 0:02:30]} Nh7 {[%emt 0:00:52]} 23. f4 {[%emt 0:05:05]} Bf5 {[%emt 0:00:44]} (23... Nxg5 24. Qh5 Bf6 25. Bxf6 (25. fxg5 Bxe5 26. Qh7+ Kf7 $16) (25. Nxa7 Qf3 $18) (25. Nxc7 Bxe5 26. Nxe8 Bxe8 $11) 25... Qxf6 26. Qh8+ (26. fxg5 Qa1+ 27. Kd2 Rf2+ 28. Kd3 Bf5+) 26... Kf7 27. Rxd7+ Re7 28. Qh5+ (28. Rxc7 $2 Qa1+ 29. Kd2 Qe1+ 30. Kd3 Qe3#) 28... Kg8 29. Rxe7 (29. fxg5 $2 Qa1+ 30. Kd2 Qe1+ 31. Kd3 Qe3#) 29... Qa1+ 30. Kd2 Rd8+ 31. Ke2 Qd1+ 32. Kf2 Qxc2+ 33. Re2 $18 (33. Qe2 Rd2 $18)) 24. Nd4 {[%emt 0:01:56]} (24. Bxc7 $2 Ba3+ 25. Nxa3 Rxe2 $19) (24. Kb2 $14) 24... Qe4 $1 $11 {[%emt 0:00:10]} 25. Qxe4 $1 {[%emt 0:04:30]} (25. Bxc7 $2 Ba3+ 26. Kb1 Qxd4 (26... Qxe2 $2 27. Nxe2 Rxe2 28. Rdh1 $19) 27. Rxd4 Rxe2 $19) 25... Bxe4 {[%emt 0:00:02]} 26. Re1 {[%emt 0:00:06]} (26. Rg4 {simplifies} Bxg5 27. Bxc7 Be7 28. Be5) 26... Bg6 {[%emt 0:01:57]} (26... Nxg5 $6 27. Rg4 $14) 27. Ne6 $2 {[%emt 0:02:57]} (27. Bxc7 Nxg5 28. Rxe7 Rxe7 $15) (27. Kb2 $11 {and White stays safe.}) 27... Ba3+ $19 {[%emt 0:00:28]} 28. Bb2 {[%emt 0:00:02] [#]} Bxb2+ {[%emt 0:02:00]} (28... Bb4 $1 $19 {[%cal Rb4e1]} 29. Re5 Rf7) 29. Kxb2 $15 {[%emt 0:00:04]} Bf5 {[%emt 0:03:35]} 30. Nxf8 {[%emt 0:03:53]} Rxe1 {[%emt 0:00:03]} 31. Nxh7 {[%emt 0:00:04]} Bxh7 {[%emt 0:00:03]} 32. Rh2 {[%emt 0:00:06]} Bf5 {[%emt 0:00:11]} 33. Rd2 {[%emt 0:00:28]} Re4 {[%emt 0:02:11]} 34. Rd8+ {[%emt 0:00:13]} Kf7 {[%emt 0:00:19]} 35. Ra8 {[%emt 0:00:04]} Ke7 {[%emt 0:00:18]} ({Worse is} 35... Rxf4 36. Rxa7 Ke8 37. Rxc7 $18) 36. Rxa7 {[%emt 0:00:05]} Kd7 {[%emt 0:00:06]} (36... Rxf4 37. Rxc7+ Kd6 38. Rxg7 $16) 37. a5 {[%emt 0:02:51]} Rxf4 {[%emt 0:00:05]} 38. Rb7 {[%emt 0:01:12]} Rf2 {[%emt 0:00:59]} 39. b4 {[%emt 0:00:37]} Bxc2 {[%emt 0:00:50]} 40. Kc3 {[%emt 0:00:07]} Be4 {[%emt 0:00:28]} 41. Rb8 $1 {[%emt 0:30:38]} c5 {[%emt 0:16:21]} 42. b5 {[%emt 0:00:00]} Ra2 {[%emt 0:00:52]} 43. a6 {[%emt 0:00:00]} g6 {[%emt 0:07:36]} 44. Rf8 {[%emt 0:00:00]} Ra3+ {[%emt 0:01:52]} 45. Kb2 {[%emt 0:00:00]} Ra4 {[%emt 0:01:37]} 46. Kb3 {[%emt 0:00:00]} Ra1 {[%emt 0:00:07]} 47. Rf7+ {[%emt 0:00:00]} Ke6 {[%emt 0:02:14]} 48. Rc7 {[%emt 0:00:00]} Kd6 {[%emt 0:00:10]} 49. Rg7 {[%emt 0:00:00]} Rg1 {[%emt 0:02:16]} 50. a7 {[%emt 0:00:00]} Rb1+ {[%emt 0:01:38]} 51. Kc3 {[%emt 0:00:00]} Ra1 $2 {[%emt 0:01:05]} (51... Rc1+ $11 52. Kb3 Ra1) 52. b6 $18 {[%emt 0:00:00]} Ra3+ {[%emt 0:00:27]} 53. Kd2 {[%emt 0:00:00]} (53. Kb2 $142 Ra4 54. Rxg6+ Ke5 (54... Bxg6 $2 {perishes.} 55. b7 $18) 55. Rh6) 53... Ra6 $2 {[%emt 0:00:36]} (53... Ba8 54. Rxg6+ Kd7) 54. Rxg6+ $18 {[%emt 0:00:00]} Ke5 {[%emt 0:00:20]} 55. Rf6 {[%emt 0:00:00]} (55. Rh6 $142) 55... Kd4 $2 {[%emt 0:00:27]} (55... Ra2+ 56. Kc3 Rc2+ 57. Kb3 Rc1) 56. Rd6+ $18 {[%emt 0:01:23]} Ke5 {[%emt 0:00:24]} 57. Rd5+ {[%emt 0:01:08]} Bxd5 {[%emt 0:01:00]} 58. cxd5 {[%emt 0:00:04]} Kd4 {[%emt 0:00:05]} 59. b7 {[%emt 0:00:06]} Ra2+ {[%emt 0:00:03]} 60. Kc1 {[%emt 0:00:09]} 1-0

[Event "Karel Janecek Open 2024"]
[Site "Prague"]
[Date "2024.03.05"]
[Round "7.9"]
[White "Kraus, Tomas"]
[Black "Chinguun, Sumiya"]
[Result "1/2-1/2"]
[ECO "B50"]
[WhiteElo "2484"]
[BlackElo "2319"]
[Annotator "TA"]
[PlyCount "58"]
[EventDate "2024.02.22"]
[EventType "swiss"]
[EventCountry "CZE"]
[SourceTitle "playchess.com"]
[Source "ChessBase"]
[SourceQuality "1"]
[TimeControl "40/5400+30:1800+30"]

{[%evp 9,58,7,11,13,16,-14,-16,-14,-12,-17,-12,-11,-16,-2,-15,-14,0,-18,0,-10,6,0,14,0,8,0,12,7,25,0,22,12,22,0,69,6,0,0,25,33,133,133,127,133,139,131,139,114,139,77,77]} 1. e4 {[%emt 0:00:03]} c5 {[%emt 0:00:06]} 2. Nf3 {[%emt 0:00:43]} d6 {[%emt 0:00:13]} 3. Nc3 {[%emt 0:04:14]} Nf6 {[%emt 0:00:18]} 4. e5 {[%emt 0:01:39]} dxe5 {[%emt 0:00:14]} 5. Nxe5 {[%emt 0:00:02]} a6 {[%emt 0:01:02]} 6. g3 {[%emt 0:01:37]} Qd6 {[%emt 0:02:19]} 7. Qe2 {[%emt 0:00:26]} Nc6 {[%emt 0:02:03]} 8. Nxc6 {[%emt 0:00:12] The position is equal.} Qxc6 {[%emt 0:00:33]} 9. Rg1 {[%emt 0:00:06]} Bg4 {[%emt 0:02:02]} 10. Bg2 {[%emt 0:00:08]} Qxg2 {[%emt 0:04:01]} 11. Rxg2 {[%emt 0:00:04]} Bxe2 {[%emt 0:00:08]} 12. Kxe2 {[%emt 0:01:05]} e6 {[%emt 0:02:29]} 13. d3 {[%emt 0:01:06]} Bd6 {[%emt 0:00:45]} 14. a4 {[%emt 0:03:35]} b6 {[%emt 0:02:15]} 15. f4 {[%emt 0:04:51]} O-O-O {[%emt 0:04:01]} 16. Bd2 {[%emt 0:06:57]} Kb7 {[%emt 0:04:50]} 17. Kf3 {[%emt 0:02:21]} g6 {[%emt 0:10:25]} 18. Re2 {[%emt 0:03:26]} Bf8 {[%emt 0:04:29]} 19. g4 {[%emt 0:08:40][%cal Bg3g4,Bg4g5][%mdl 32]} h5 {[%emt 0:05:17]} 20. g5 {[%emt 0:01:23]} Nd5 {[%emt 0:01:28]} 21. Ne4 {[%emt 0:02:52]} Bd6 {[%emt 0:09:53]} (21... Kc6 $11) 22. c4 {[%emt 0:09:41]} ({White should play} 22. a5 $14) 22... Ne7 $11 {[%emt 0:05:58]} 23. Bc3 {[%emt 0:03:40] Inhibits Bc7.} Rhf8 {[%emt 0:01:03][%cal Bh8f8,Bf8d8,Bd8d6][%mdl 32]} 24. Bf6 {[%emt 0:11:42] Nxd6+ would now be deadly.} Nf5 {[%emt 0:05:44]} 25. Bxd8 $16 {[%emt 0:01:43]} Rxd8 {[%emt 0:01:48]} 26. Nxd6+ {[%emt 0:08:30]} Rxd6 {[%emt 0:00:07] [#]} 27. Ke4 {[%emt 0:00:35]} a5 {[%emt 0:05:20]} (27... Rd4+ 28. Ke5 a5 29. Ra3 $16) 28. Rd1 {[%emt 0:03:37]} Kc6 {[%emt 0:05:05] [#]} 29. Ke5 {[%emt 0:01:54]} (29. Rf2 $142 $1) 29... Kd7 {[%emt 0:04:40] Weighted Error Value: White=0.15 (very precise) /Black=0.20 (precise) .  Mistake:       	White=2     	Black=2      Inaccurate:     	White=1     	---        OK:         	White=9     	Black=7      Best:        	White=1     	Black=2} 1/2-1/2

[Event "Karel Janecek Open 2024"]
[Site "Prague"]
[Date "2024.03.05"]
[Round "7.10"]
[White "Maksimovic, Bojan"]
[Black "Kusa, Jakub"]
[Result "1/2-1/2"]
[ECO "C65"]
[WhiteElo "2497"]
[BlackElo "2350"]
[Annotator "RC"]
[PlyCount "82"]
[EventDate "2024.02.22"]
[EventType "swiss"]
[EventCountry "CZE"]
[SourceTitle "playchess.com"]
[Source "ChessBase"]
[SourceQuality "1"]
[TimeControl "40/5400+30:1800+30"]

1. e4 {[%emt 0:00:04]} e5 {[%emt 0:00:12]} 2. Nf3 {[%emt 0:00:08]} Nc6 {[%emt 0:00:11]} 3. Bb5 {[%emt 0:00:08]} Nf6 {[%emt 0:00:29]} 4. d3 {[%emt 0:01:34]} Bc5 {[%emt 0:00:21]} 5. c3 {[%emt 0:00:22]} d5 {[%emt 0:01:45]} 6. exd5 {[%emt 0:00:21]} Qxd5 {[%emt 0:00:17]} 7. Bc4 {[%emt 0:01:06]} Qd6 {[%emt 0:00:26]} 8. b4 {[%emt 0:07:23]} Bb6 {[%emt 0:00:11]} 9. Nbd2 {[%emt 0:00:14]} Bf5 {[%emt 0:00:50]} 10. Ng5 {[%emt 0:03:06]} O-O {[%emt 0:00:25]} 11. Nde4 {[%emt 0:02:33]} Nxe4 {[%emt 0:00:20]} 12. dxe4 {[%emt 0:00:39]} Qxd1+ {[%emt 0:00:08]} 13. Kxd1 {[%emt 0:00:05]} Bg4+ {[%emt 0:00:10]} 14. Kc2 {[%emt 0:02:43]} h6 {[%emt 0:01:54]} 15. Nf3 {[%emt 0:01:20]} Bxf2 {[%emt 0:01:23]} 16. Rf1 {[%emt 0:00:13]} Bb6 {[%emt 0:01:11]} 17. a4 {[%emt 0:03:06]} a6 {[%emt 0:01:12]} 18. Ba3 {[%emt 0:05:03]} Rfe8 {[%emt 0:10:52]} 19. Rad1 {[%emt 0:03:04]} Rad8 {[%emt 0:06:05]} 20. Bd5 {[%emt 0:27:46]} Be6 {[%emt 0:08:34]} 21. Bxc6 {[%emt 0:17:07]} Rxd1 {[%emt 0:00:58]} 22. Rxd1 {[%emt 0:00:14]} bxc6 {[%emt 0:00:06]} 23. Nxe5 {[%emt 0:00:47]} Ba2 {[%emt 0:01:00]} 24. Kb2 {[%emt 0:05:29]} Rxe5 {[%emt 0:03:11]} 25. Kxa2 {[%emt 0:00:09]} Rxe4 {[%emt 0:02:14]} 26. a5 {[%emt 0:04:05]} Re2+ {[%emt 0:00:34]} 27. Kb3 {[%emt 0:00:04]} Be3 {[%emt 0:00:42]} 28. Rd8+ {[%emt 0:02:05]} Kh7 {[%emt 0:00:08]} 29. Ra8 {[%emt 0:07:37]} Rxg2 {[%emt 0:01:54]} 30. Rxa6 {[%emt 0:00:04]} f5 {[%emt 0:02:59]} 31. Rxc6 {[%emt 0:00:03]} f4 {[%emt 0:01:44]} 32. Rxc7 {[%emt 0:00:07]} f3 {[%emt 0:01:11]} 33. Rf7 {[%emt 0:00:04]} f2 {[%emt 0:00:42]} 34. c4 {[%emt 0:01:06]} Rg6 {[%emt 0:02:58]} 35. Rxf2 {[%emt 0:05:32]} Bxf2 {[%emt 0:00:09]} 36. c5 {[%emt 0:00:05]} Be1 {[%emt 0:07:19]} 37. Ka4 {[%emt 0:02:29]} Re6 {[%emt 0:01:29]} 38. Kb5 {[%emt 0:00:19]} Re3 {[%emt 0:00:39]} 39. Ka4 {[%emt 0:00:08]} Re6 {[%emt 0:01:07]} 40. Kb5 {[%emt 0:00:09]} Re3 {[%emt 0:02:21]} 41. Ka4 {[%emt 0:30:04]} Re6 {[%emt 0:30:11]} 1/2-1/2